{"text_format":"1","workbook":"xlsx","n_sheets":4,"sheets":["Information","Worksheet","Answers","Working"],"not_rendered":{"charts":0,"images":0,"macros":1,"external_links":0,"defined_names":0,"comments":0,"pivot_tables":0},"unopened":[],"bounds":{"document_bytes":16777216,"sheet_cells":100000,"rows_first":2000,"rows_last":500,"rows_between":2000,"halvings":0,"cell_chars":16384,"cell_head_chars":4096},"cells_cut":0,"cells_raw":0,"read":"whole","date_system":"1900"}

{"sheet":"Information","index":0,"n_rows":15,"n_cols":9,"rows_kept":15,"cut":false,"hidden":false,"merged":[[3,2,3,6],[5,2,5,6],[5,8,9,9],[7,2,10,7]]}
[null,null,null,null,"SUBSTITUTION"]
[null,null,null,null,"Integers"]
[]
[null,null,"INSTRUCTIONS"]
[]
[null,"Step 1","Click on WorkSheet tab below.",null,null,null,null,null,"PRESS F9 for NEW WorkSheet"]
[]
[null,"Note","If you hold down shift then click on the WorkSheet tab and the Answers tab, you will be able to print both the WorkSheet and the solutions."]
[]
[]
[]
[]
[null,null,"NOTES:"]
[null,null,"* Practise simple substitution with integers."]
[null,null,"* The answers do not show working."]

{"sheet":"Worksheet","index":1,"n_rows":29,"n_cols":8,"rows_kept":29,"cut":false,"hidden":false,"merged":[[3,1,3,3]]}
[null,null,null,null,"SUBSTITUTION"]
[null,null,null,null,null,null,{"$f":"CONCATENATE(\"Worksheet \",Working!D1,Working!B1)","v":"Worksheet SUB-773"}]
["Evaluate the following expressions if;"]
[null,{"$f":"CONCATENATE(Working!A4,\" = \",Working!S4,\", \",Working!A5,\" = \",Working!S5,\", \",Working!A6,\" = \",Working!S5,\", \",Working!A7,\" = \",Working!S5,\", \",Working!A8,\" = \",Working!S5)","v":"c = -3, h = 6, j = 6, q = 6, u = 6"}]
[{"$f":"CONCATENATE(Working!A13,\")\")","v":"1)"},{"$f":"Working!$BB13","v":"c + 9"},{"$f":"CONCATENATE(Working!A38,\")\")","v":"26)"},{"$f":"Working!$BB38","v":"3c"},{"$f":"CONCATENATE(Working!A63,\")\")","v":"51)"},{"$f":"Working!$BB54","v":"3q + 3"},{"$f":"CONCATENATE(Working!A88,\")\")","v":"76)"},{"$f":"Working!$BB89","v":"c + 5"}]
[{"$f":"CONCATENATE(Working!A14,\")\")","v":"2)"},{"$f":"Working!$BB14","v":"h + 6"},{"$f":"CONCATENATE(Working!A39,\")\")","v":"27)"},{"$f":"Working!$BB39","v":"5c"},{"$f":"CONCATENATE(Working!A64,\")\")","v":"52)"},{"$f":"Working!$BB55","v":"4u + 4"},{"$f":"CONCATENATE(Working!A89,\")\")","v":"77)"},{"$f":"Working!$BB90","v":"c + 7"}]
[{"$f":"CONCATENATE(Working!A15,\")\")","v":"3)"},{"$f":"Working!$BB15","v":"j + 5"},{"$f":"CONCATENATE(Working!A40,\")\")","v":"28)"},{"$f":"Working!$BB40","v":"2u"},{"$f":"CONCATENATE(Working!A65,\")\")","v":"53)"},{"$f":"Working!$BB56","v":"6u + 6"},{"$f":"CONCATENATE(Working!A90,\")\")","v":"78)"},{"$f":"Working!$BB91","v":"c + 8"}]
[{"$f":"CONCATENATE(Working!A16,\")\")","v":"4)"},{"$f":"Working!$BB16","v":"q + 9"},{"$f":"CONCATENATE(Working!A41,\")\")","v":"29)"},{"$f":"Working!$BB41","v":"4j"},{"$f":"CONCATENATE(Working!A66,\")\")","v":"54)"},{"$f":"Working!$BB57","v":"cj + 5"},{"$f":"CONCATENATE(Working!A91,\")\")","v":"79)"},{"$f":"Working!$BB92","v":"c + 8"}]
[{"$f":"CONCATENATE(Working!A17,\")\")","v":"5)"},{"$f":"Working!$BB17","v":"u + 5"},{"$f":"CONCATENATE(Working!A42,\")\")","v":"30)"},{"$f":"Working!$BB42","v":"3h"},{"$f":"CONCATENATE(Working!A67,\")\")","v":"55)"},{"$f":"Working!$BB58","v":"hc + 3"},{"$f":"CONCATENATE(Working!A92,\")\")","v":"80)"},{"$f":"Working!$BB93","v":"c + 5"}]
[{"$f":"CONCATENATE(Working!A18,\")\")","v":"6)"},{"$f":"Working!$BB18","v":"j + 12"},{"$f":"CONCATENATE(Working!A43,\")\")","v":"31)"},{"$f":"Working!$BB43","v":"7q"},{"$f":"CONCATENATE(Working!A68,\")\")","v":"56)"},{"$f":"Working!$BB59","v":"uj + 6"},{"$f":"CONCATENATE(Working!A93,\")\")","v":"81)"},{"$f":"Working!$BB94","v":"c + 5"}]
[{"$f":"CONCATENATE(Working!A19,\")\")","v":"7)"},{"$f":"Working!$BB19","v":"c + 12"},{"$f":"CONCATENATE(Working!A44,\")\")","v":"32)"},{"$f":"Working!$BB44","v":"4c"},{"$f":"CONCATENATE(Working!A69,\")\")","v":"57)"},{"$f":"Working!$BB60","v":"jh + 8"},{"$f":"CONCATENATE(Working!A94,\")\")","v":"82)"},{"$f":"Working!$BB95","v":"c + 7"}]
[{"$f":"CONCATENATE(Working!A20,\")\")","v":"8)"},{"$f":"Working!$BB20","v":"u + 9"},{"$f":"CONCATENATE(Working!A45,\")\")","v":"33)"},{"$f":"Working!$BB45","v":"3j"},{"$f":"CONCATENATE(Working!A70,\")\")","v":"58)"},{"$f":"Working!$BB61","v":"qc + 8"},{"$f":"CONCATENATE(Working!A95,\")\")","v":"83)"},{"$f":"Working!$BB96","v":"c + 9"}]
[{"$f":"CONCATENATE(Working!A21,\")\")","v":"9)"},{"$f":"Working!$BB21","v":"j + 10"},{"$f":"CONCATENATE(Working!A46,\")\")","v":"34)"},{"$f":"Working!$BB46","v":"7u"},{"$f":"CONCATENATE(Working!A71,\")\")","v":"59)"},{"$f":"Working!$BB62","v":"uc + 8"},{"$f":"CONCATENATE(Working!A96,\")\")","v":"84)"},{"$f":"Working!$BB97","v":"c + 8"}]
[{"$f":"CONCATENATE(Working!A22,\")\")","v":"10)"},{"$f":"Working!$BB22","v":"h + 9"},{"$f":"CONCATENATE(Working!A47,\")\")","v":"35)"},{"$f":"Working!$BB47","v":"7j"},{"$f":"CONCATENATE(Working!A72,\")\")","v":"60)"},{"$f":"Working!$BB63","v":"c + 5"},{"$f":"CONCATENATE(Working!A97,\")\")","v":"85)"},{"$f":"Working!$BB98","v":"c + 7"}]
[{"$f":"CONCATENATE(Working!A23,\")\")","v":"11)"},{"$f":"Working!$BB23","v":"q - 2"},{"$f":"CONCATENATE(Working!A48,\")\")","v":"36)"},{"$f":"Working!$BB48","v":"cj"},{"$f":"CONCATENATE(Working!A73,\")\")","v":"61)"},{"$f":"Working!$BB64","v":"c + 6"},{"$f":"CONCATENATE(Working!A98,\")\")","v":"86)"},{"$f":"Working!$BB99","v":"c + 6"}]
[{"$f":"CONCATENATE(Working!A24,\")\")","v":"12)"},{"$f":"Working!$BB24","v":"u - 6"},{"$f":"CONCATENATE(Working!A49,\")\")","v":"37)"},{"$f":"Working!$BB49","v":"jh"},{"$f":"CONCATENATE(Working!A74,\")\")","v":"62)"},{"$f":"Working!$BB65","v":"c + 6"},{"$f":"CONCATENATE(Working!A99,\")\")","v":"87)"},{"$f":"Working!$BB100","v":"c + 7"}]
[{"$f":"CONCATENATE(Working!A25,\")\")","v":"13)"},{"$f":"Working!$BB25","v":"c + j"},{"$f":"CONCATENATE(Working!A50,\")\")","v":"38)"},{"$f":"Working!$BB50","v":"ju"},{"$f":"CONCATENATE(Working!A75,\")\")","v":"63)"},{"$f":"Working!$BB66","v":"c + 9"},{"$f":"CONCATENATE(Working!A100,\")\")","v":"88)"},{"$f":"Working!$BB101","v":"c + 8"}]
[{"$f":"CONCATENATE(Working!A26,\")\")","v":"14)"},{"$f":"Working!$BB26","v":"h + u"},{"$f":"CONCATENATE(Working!A51,\")\")","v":"39)"},{"$f":"Working!$BB51","v":"qj"},{"$f":"CONCATENATE(Working!A76,\")\")","v":"64)"},{"$f":"Working!$BB67","v":"c + 5"},{"$f":"CONCATENATE(Working!A101,\")\")","v":"89)"},{"$f":"Working!$BB102","v":"c + 6"}]
[{"$f":"CONCATENATE(Working!A27,\")\")","v":"15)"},{"$f":"Working!$BB27","v":"j + c"},{"$f":"CONCATENATE(Working!A52,\")\")","v":"40)"},{"$f":"Working!$BB52","v":"cj"},{"$f":"CONCATENATE(Working!A77,\")\")","v":"65)"},{"$f":"Working!$BB68","v":"c + 9"},{"$f":"CONCATENATE(Working!A102,\")\")","v":"90)"},{"$f":"Working!$BB103","v":"c + 8"}]
[{"$f":"CONCATENATE(Working!A28,\")\")","v":"16)"},{"$f":"Working!$BB28","v":"q + j"},{"$f":"CONCATENATE(Working!A53,\")\")","v":"41)"},{"$f":"Working!$BB53","v":"5c + 5"},{"$f":"CONCATENATE(Working!A78,\")\")","v":"66)"},{"$f":"Working!$BB69","v":"c + 8"},{"$f":"CONCATENATE(Working!A103,\")\")","v":"91)"},{"$f":"Working!$BB104","v":"c + 8"}]
[{"$f":"CONCATENATE(Working!A29,\")\")","v":"17)"},{"$f":"Working!$BB29","v":"u - c"},{"$f":"CONCATENATE(Working!A54,\")\")","v":"42)"},{"$f":"Working!$BB54","v":"3q + 3"},{"$f":"CONCATENATE(Working!A79,\")\")","v":"67)"},{"$f":"Working!$BB70","v":"c + 8"},{"$f":"CONCATENATE(Working!A104,\")\")","v":"92)"},{"$f":"Working!$BB105","v":"c + 8"}]
[{"$f":"CONCATENATE(Working!A30,\")\")","v":"18)"},{"$f":"Working!$BB30","v":"q + u"},{"$f":"CONCATENATE(Working!A55,\")\")","v":"43)"},{"$f":"Working!$BB55","v":"4u + 4"},{"$f":"CONCATENATE(Working!A80,\")\")","v":"68)"},{"$f":"Working!$BB71","v":"c + 7"},{"$f":"CONCATENATE(Working!A105,\")\")","v":"93)"},{"$f":"Working!$BB106","v":"c + 7"}]
[{"$f":"CONCATENATE(Working!A31,\")\")","v":"19)"},{"$f":"Working!$BB31","v":"q - c"},{"$f":"CONCATENATE(Working!A56,\")\")","v":"44)"},{"$f":"Working!$BB56","v":"6u + 6"},{"$f":"CONCATENATE(Working!A81,\")\")","v":"69)"},{"$f":"Working!$BB72","v":"c + 9"},{"$f":"CONCATENATE(Working!A106,\")\")","v":"94)"},{"$f":"Working!$BB107","v":"c + 7"}]
[{"$f":"CONCATENATE(Working!A32,\")\")","v":"20)"},{"$f":"Working!$BB32","v":"u - h"},{"$f":"CONCATENATE(Working!A57,\")\")","v":"45)"},{"$f":"Working!$BB57","v":"cj + 5"},{"$f":"CONCATENATE(Working!A82,\")\")","v":"70)"},{"$f":"Working!$BB73","v":"c + 6"},{"$f":"CONCATENATE(Working!A107,\")\")","v":"95)"},{"$f":"Working!$BB108","v":"c + 6"}]
[{"$f":"CONCATENATE(Working!A33,\")\")","v":"21)"},{"$f":"Working!$BB33","v":"c + h + j"},{"$f":"CONCATENATE(Working!A58,\")\")","v":"46)"},{"$f":"Working!$BB58","v":"hc + 3"},{"$f":"CONCATENATE(Working!A83,\")\")","v":"71)"},{"$f":"Working!$BB74","v":"c + 5"},{"$f":"CONCATENATE(Working!A108,\")\")","v":"96)"},{"$f":"Working!$BB109","v":"c + 7"}]
[{"$f":"CONCATENATE(Working!A34,\")\")","v":"22)"},{"$f":"Working!$BB34","v":"c + u + j"},{"$f":"CONCATENATE(Working!A59,\")\")","v":"47)"},{"$f":"Working!$BB59","v":"uj + 6"},{"$f":"CONCATENATE(Working!A84,\")\")","v":"72)"},{"$f":"Working!$BB75","v":"c + 7"},{"$f":"CONCATENATE(Working!A109,\")\")","v":"97)"},{"$f":"Working!$BB110","v":"c + 5"}]
[{"$f":"CONCATENATE(Working!A35,\")\")","v":"23)"},{"$f":"Working!$BB35","v":"q + c + j"},{"$f":"CONCATENATE(Working!A60,\")\")","v":"48)"},{"$f":"Working!$BB60","v":"jh + 8"},{"$f":"CONCATENATE(Working!A85,\")\")","v":"73)"},{"$f":"Working!$BB76","v":"c + 5"},{"$f":"CONCATENATE(Working!A110,\")\")","v":"98)"},{"$f":"Working!$BB111","v":"c + 6"}]
[{"$f":"CONCATENATE(Working!A36,\")\")","v":"24)"},{"$f":"Working!$BB36","v":"c + q - j"},{"$f":"CONCATENATE(Working!A61,\")\")","v":"49)"},{"$f":"Working!$BB61","v":"qc + 8"},{"$f":"CONCATENATE(Working!A86,\")\")","v":"74)"},{"$f":"Working!$BB77","v":"c + 8"},{"$f":"CONCATENATE(Working!A111,\")\")","v":"99)"},{"$f":"Working!$BB112","v":"c + 8"}]
[{"$f":"CONCATENATE(Working!A37,\")\")","v":"25)"},{"$f":"Working!$BB37","v":"u - c + j"},{"$f":"CONCATENATE(Working!A62,\")\")","v":"50)"},{"$f":"Working!$BB62","v":"uc + 8"},{"$f":"CONCATENATE(Working!A87,\")\")","v":"75)"},{"$f":"Working!$BB78","v":"c + 6"},{"$f":"CONCATENATE(Working!A112,\")\")","v":"100)"},{"$f":"Working!$BB113","v":0}]

{"sheet":"Answers","index":2,"n_rows":28,"n_cols":8,"rows_kept":28,"cut":false,"hidden":false,"merged":[]}
[null,null,null,null,"SUBSTITUTION"]
[null,null,null,null,"ANSWERS",null,{"$f":"CONCATENATE(\"Worksheet \",Working!D1,Working!B1)","v":"Worksheet SUB-773"}]
[]
[{"$f":"CONCATENATE(Working!A13,\")\")","v":"1)"},{"$f":"Working!$BC13","v":6},{"$f":"CONCATENATE(Working!A38,\")\")","v":"26)"},{"$f":"Working!$BC38","v":-9},{"$f":"CONCATENATE(Working!A63,\")\")","v":"51)"},{"$f":"Working!$BC63","v":2},{"$f":"CONCATENATE(Working!A88,\")\")","v":"76)"},{"$f":"Working!$BC88","v":5}]
[{"$f":"CONCATENATE(Working!A14,\")\")","v":"2)"},{"$f":"Working!$BC14","v":12},{"$f":"CONCATENATE(Working!A39,\")\")","v":"27)"},{"$f":"Working!$BC39","v":-15},{"$f":"CONCATENATE(Working!A64,\")\")","v":"52)"},{"$f":"Working!$BC64","v":3},{"$f":"CONCATENATE(Working!A89,\")\")","v":"77)"},{"$f":"Working!$BC89","v":2}]
[{"$f":"CONCATENATE(Working!A15,\")\")","v":"3)"},{"$f":"Working!$BC15","v":-4},{"$f":"CONCATENATE(Working!A40,\")\")","v":"28)"},{"$f":"Working!$BC40","v":-9},{"$f":"CONCATENATE(Working!A65,\")\")","v":"53)"},{"$f":"Working!$BC65","v":3},{"$f":"CONCATENATE(Working!A90,\")\")","v":"78)"},{"$f":"Working!$BC90","v":4}]
[{"$f":"CONCATENATE(Working!A16,\")\")","v":"4)"},{"$f":"Working!$BC16","v":13},{"$f":"CONCATENATE(Working!A41,\")\")","v":"29)"},{"$f":"Working!$BC41","v":-36},{"$f":"CONCATENATE(Working!A66,\")\")","v":"54)"},{"$f":"Working!$BC66","v":6},{"$f":"CONCATENATE(Working!A91,\")\")","v":"79)"},{"$f":"Working!$BC91","v":5}]
[{"$f":"CONCATENATE(Working!A17,\")\")","v":"5)"},{"$f":"Working!$BC17","v":13},{"$f":"CONCATENATE(Working!A42,\")\")","v":"30)"},{"$f":"Working!$BC42","v":18},{"$f":"CONCATENATE(Working!A67,\")\")","v":"55)"},{"$f":"Working!$BC67","v":2},{"$f":"CONCATENATE(Working!A92,\")\")","v":"80)"},{"$f":"Working!$BC92","v":5}]
[{"$f":"CONCATENATE(Working!A18,\")\")","v":"6)"},{"$f":"Working!$BC18","v":3},{"$f":"CONCATENATE(Working!A43,\")\")","v":"31)"},{"$f":"Working!$BC43","v":28},{"$f":"CONCATENATE(Working!A68,\")\")","v":"56)"},{"$f":"Working!$BC68","v":6},{"$f":"CONCATENATE(Working!A93,\")\")","v":"81)"},{"$f":"Working!$BC93","v":2}]
[{"$f":"CONCATENATE(Working!A19,\")\")","v":"7)"},{"$f":"Working!$BC19","v":9},{"$f":"CONCATENATE(Working!A44,\")\")","v":"32)"},{"$f":"Working!$BC44","v":-12},{"$f":"CONCATENATE(Working!A69,\")\")","v":"57)"},{"$f":"Working!$BC69","v":5},{"$f":"CONCATENATE(Working!A94,\")\")","v":"82)"},{"$f":"Working!$BC94","v":2}]
[{"$f":"CONCATENATE(Working!A20,\")\")","v":"8)"},{"$f":"Working!$BC20","v":17},{"$f":"CONCATENATE(Working!A45,\")\")","v":"33)"},{"$f":"Working!$BC45","v":-27},{"$f":"CONCATENATE(Working!A70,\")\")","v":"58)"},{"$f":"Working!$BC70","v":5},{"$f":"CONCATENATE(Working!A95,\")\")","v":"83)"},{"$f":"Working!$BC95","v":4}]
[{"$f":"CONCATENATE(Working!A21,\")\")","v":"9)"},{"$f":"Working!$BC21","v":1},{"$f":"CONCATENATE(Working!A46,\")\")","v":"34)"},{"$f":"Working!$BC46","v":56},{"$f":"CONCATENATE(Working!A71,\")\")","v":"59)"},{"$f":"Working!$BC71","v":4},{"$f":"CONCATENATE(Working!A96,\")\")","v":"84)"},{"$f":"Working!$BC96","v":6}]
[{"$f":"CONCATENATE(Working!A22,\")\")","v":"10)"},{"$f":"Working!$BC22","v":15},{"$f":"CONCATENATE(Working!A47,\")\")","v":"35)"},{"$f":"Working!$BC47","v":-63},{"$f":"CONCATENATE(Working!A72,\")\")","v":"60)"},{"$f":"Working!$BC72","v":6},{"$f":"CONCATENATE(Working!A97,\")\")","v":"85)"},{"$f":"Working!$BC97","v":5}]
[{"$f":"CONCATENATE(Working!A23,\")\")","v":"11)"},{"$f":"Working!$BC23","v":2},{"$f":"CONCATENATE(Working!A48,\")\")","v":"36)"},{"$f":"Working!$BC48","v":81},{"$f":"CONCATENATE(Working!A73,\")\")","v":"61)"},{"$f":"Working!$BC73","v":3},{"$f":"CONCATENATE(Working!A98,\")\")","v":"86)"},{"$f":"Working!$BC98","v":4}]
[{"$f":"CONCATENATE(Working!A24,\")\")","v":"12)"},{"$f":"Working!$BC24","v":2},{"$f":"CONCATENATE(Working!A49,\")\")","v":"37)"},{"$f":"Working!$BC49","v":-54},{"$f":"CONCATENATE(Working!A74,\")\")","v":"62)"},{"$f":"Working!$BC74","v":2},{"$f":"CONCATENATE(Working!A99,\")\")","v":"87)"},{"$f":"Working!$BC99","v":3}]
[{"$f":"CONCATENATE(Working!A25,\")\")","v":"13)"},{"$f":"Working!$BC25","v":-12},{"$f":"CONCATENATE(Working!A50,\")\")","v":"38)"},{"$f":"Working!$BC50","v":-72},{"$f":"CONCATENATE(Working!A75,\")\")","v":"63)"},{"$f":"Working!$BC75","v":4},{"$f":"CONCATENATE(Working!A100,\")\")","v":"88)"},{"$f":"Working!$BC100","v":4}]
[{"$f":"CONCATENATE(Working!A26,\")\")","v":"14)"},{"$f":"Working!$BC26","v":14},{"$f":"CONCATENATE(Working!A51,\")\")","v":"39)"},{"$f":"Working!$BC51","v":-36},{"$f":"CONCATENATE(Working!A76,\")\")","v":"64)"},{"$f":"Working!$BC76","v":2},{"$f":"CONCATENATE(Working!A101,\")\")","v":"89)"},{"$f":"Working!$BC101","v":5}]
[{"$f":"CONCATENATE(Working!A27,\")\")","v":"15)"},{"$f":"Working!$BC27","v":-12},{"$f":"CONCATENATE(Working!A52,\")\")","v":"40)"},{"$f":"Working!$BC52","v":81},{"$f":"CONCATENATE(Working!A77,\")\")","v":"65)"},{"$f":"Working!$BC77","v":5},{"$f":"CONCATENATE(Working!A102,\")\")","v":"90)"},{"$f":"Working!$BC102","v":3}]
[{"$f":"CONCATENATE(Working!A28,\")\")","v":"16)"},{"$f":"Working!$BC28","v":-5},{"$f":"CONCATENATE(Working!A53,\")\")","v":"41)"},{"$f":"Working!$BC53","v":-4},{"$f":"CONCATENATE(Working!A78,\")\")","v":"66)"},{"$f":"Working!$BC78","v":3},{"$f":"CONCATENATE(Working!A103,\")\")","v":"91)"},{"$f":"Working!$BC103","v":5}]
[{"$f":"CONCATENATE(Working!A29,\")\")","v":"17)"},{"$f":"Working!$BC29","v":11},{"$f":"CONCATENATE(Working!A54,\")\")","v":"42)"},{"$f":"Working!$BC54","v":15},{"$f":"CONCATENATE(Working!A79,\")\")","v":"67)"},{"$f":"Working!$BC79","v":3},{"$f":"CONCATENATE(Working!A104,\")\")","v":"92)"},{"$f":"Working!$BC104","v":5}]
[{"$f":"CONCATENATE(Working!A30,\")\")","v":"18)"},{"$f":"Working!$BC30","v":12},{"$f":"CONCATENATE(Working!A55,\")\")","v":"43)"},{"$f":"Working!$BC55","v":28},{"$f":"CONCATENATE(Working!A80,\")\")","v":"68)"},{"$f":"Working!$BC80","v":2},{"$f":"CONCATENATE(Working!A105,\")\")","v":"93)"},{"$f":"Working!$BC105","v":5}]
[{"$f":"CONCATENATE(Working!A31,\")\")","v":"19)"},{"$f":"Working!$BC31","v":7},{"$f":"CONCATENATE(Working!A56,\")\")","v":"44)"},{"$f":"Working!$BC56","v":30},{"$f":"CONCATENATE(Working!A81,\")\")","v":"69)"},{"$f":"Working!$BC81","v":6},{"$f":"CONCATENATE(Working!A106,\")\")","v":"94)"},{"$f":"Working!$BC106","v":4}]
[{"$f":"CONCATENATE(Working!A32,\")\")","v":"20)"},{"$f":"Working!$BC32","v":2},{"$f":"CONCATENATE(Working!A57,\")\")","v":"45)"},{"$f":"Working!$BC57","v":32},{"$f":"CONCATENATE(Working!A82,\")\")","v":"70)"},{"$f":"Working!$BC82","v":3},{"$f":"CONCATENATE(Working!A107,\")\")","v":"95)"},{"$f":"Working!$BC107","v":4}]
[{"$f":"CONCATENATE(Working!A33,\")\")","v":"21)"},{"$f":"Working!$BC33","v":-6},{"$f":"CONCATENATE(Working!A58,\")\")","v":"46)"},{"$f":"Working!$BC58","v":-15},{"$f":"CONCATENATE(Working!A83,\")\")","v":"71)"},{"$f":"Working!$BC83","v":3},{"$f":"CONCATENATE(Working!A108,\")\")","v":"96)"},{"$f":"Working!$BC108","v":3}]
[{"$f":"CONCATENATE(Working!A34,\")\")","v":"22)"},{"$f":"Working!$BC34","v":-4},{"$f":"CONCATENATE(Working!A59,\")\")","v":"47)"},{"$f":"Working!$BC59","v":-66},{"$f":"CONCATENATE(Working!A84,\")\")","v":"72)"},{"$f":"Working!$BC84","v":2},{"$f":"CONCATENATE(Working!A109,\")\")","v":"97)"},{"$f":"Working!$BC109","v":4}]
[{"$f":"CONCATENATE(Working!A35,\")\")","v":"23)"},{"$f":"Working!$BC35","v":-8},{"$f":"CONCATENATE(Working!A60,\")\")","v":"48)"},{"$f":"Working!$BC60","v":-46},{"$f":"CONCATENATE(Working!A85,\")\")","v":"73)"},{"$f":"Working!$BC85","v":6},{"$f":"CONCATENATE(Working!A110,\")\")","v":"98)"},{"$f":"Working!$BC110","v":2}]
[{"$f":"CONCATENATE(Working!A36,\")\")","v":"24)"},{"$f":"Working!$BC36","v":10},{"$f":"CONCATENATE(Working!A61,\")\")","v":"49)"},{"$f":"Working!$BC61","v":-4},{"$f":"CONCATENATE(Working!A86,\")\")","v":"74)"},{"$f":"Working!$BC86","v":5},{"$f":"CONCATENATE(Working!A111,\")\")","v":"99)"},{"$f":"Working!$BC111","v":3}]
[{"$f":"CONCATENATE(Working!A37,\")\")","v":"25)"},{"$f":"Working!$BC37","v":2},{"$f":"CONCATENATE(Working!A62,\")\")","v":"50)"},{"$f":"Working!$BC62","v":-16},{"$f":"CONCATENATE(Working!A87,\")\")","v":"75)"},{"$f":"Working!$BC87","v":4},{"$f":"CONCATENATE(Working!A112,\")\")","v":"100)"},{"$f":"Working!$BC112","v":5}]

{"sheet":"Working","index":3,"n_rows":112,"n_cols":55,"rows_kept":112,"cut":false,"hidden":false,"merged":[]}
[{"$f":"INT(900*RAND()+100)","v":773},{"$f":"TEXT(1,A1)","v":"773"},null,"SUB-"]
[]
["Sets of values",null,null,1,2,3,4,5,6,7,8,9,10,11,12,13,14,15,"Use"]
[{"$f":"CHAR(INT(3*RAND()+97))","v":"c"},{"$f":"INT(6*RAND())","v":2},null,-2,2,-3,-3,2,-1,null,null,null,null,null,null,null,null,null,{"$f":"OFFSET(D4,0,VALUE(B$4))","v":-3}]
[{"$f":"CHAR(INT(5*RAND()+100))","v":"h"},null,null,3,-4,6,3,-2,-2,null,null,null,null,null,null,null,null,null,{"$f":"OFFSET(D5,0,VALUE(B$4))","v":6}]
[{"$f":"CHAR(INT(5*RAND()+106))","v":"j"},null,null,-4,5,-9,-2,3,3,null,null,null,null,null,null,null,null,null,{"$f":"OFFSET(D6,0,VALUE(B$4))","v":-9}]
[{"$f":"CHAR(INT(5*RAND()+112))","v":"q"},null,null,-5,-8,4,-5,-8,-4,null,null,null,null,null,null,null,null,null,{"$f":"OFFSET(D7,0,VALUE(B$4))","v":4}]
[{"$f":"CHAR(INT(5*RAND()+117))","v":"u"},null,null,6,10,8,4,1,5,null,null,null,null,null,null,null,null,null,{"$f":"OFFSET(D8,0,VALUE(B$4))","v":8}]
[]
[]
[null,null,null,1,null,2,null,3,null,4,null,5,null,6,null,7,null,8,null,9,null,10,null,11,null,12,null,13,null,14,null,15,null,16,null,17,null,18,null,19,null,20,null,21,null,22,null,23,null,24,null,25]
[null,"Random",null,"Q","A","Q","A","Q","A","Q","A","Q","A","Q","A","Q","A","Q","A","Q","A","Q","A","Q","A","Q","A","Q","A","Q","A","Q","A","Q","A","Q","A","Q","A","Q","A","Q","A","Q","A","Q","A","Q","A","Q","A","Q","A"]
[1,null,{"$f":"INT(5*RAND()+5)","v":9},{"$f":"CONCATENATE($A$4,\" + \",$C13)","v":"c + 9"},{"$f":"$S$4+$C$13","v":6},{"$f":"CONCATENATE($A$4,\" + \",$C13)","v":"c + 9"},{"$f":"CONCATENATE($A4,\" = \",$S$4+$C$13)","v":"c = 6"},{"$f":"CONCATENATE($A$4,\" + \",$C13)","v":"c + 9"},{"$f":"CONCATENATE($A4,\" = \",$S$4+$C$13)","v":"c = 6"},{"$f":"CONCATENATE($A$4,\" + \",$C13)","v":"c + 9"},{"$f":"CONCATENATE($A4,\" = \",$S$4+$C$13)","v":"c = 6"},{"$f":"CONCATENATE($A$4,\" + \",$C13)","v":"c + 9"},{"$f":"CONCATENATE($A4,\" = \",$S$4+$C$13)","v":"c = 6"},{"$f":"CONCATENATE($A$4,\" + \",$C13)","v":"c + 9"},{"$f":"CONCATENATE($A4,\" = \",$S$4+$C$13)","v":"c = 6"},{"$f":"CONCATENATE($A$4,\" + \",$C13)","v":"c + 9"},{"$f":"CONCATENATE($A4,\" = \",$S$4+$C$13)","v":"c = 6"},{"$f":"CONCATENATE($A$4,\" + \",$C13)","v":"c + 9"},{"$f":"CONCATENATE($A4,\" = \",$S$4+$C$13)","v":"c = 6"},{"$f":"CONCATENATE($A$4,\" + \",$C13)","v":"c + 9"},{"$f":"CONCATENATE($A4,\" = \",$S$4+$C$13)","v":"c = 6"},{"$f":"CONCATENATE($A$4,\" + \",$C13)","v":"c + 9"},{"$f":"CONCATENATE($A4,\" = \",$S$4+$C$13)","v":"c = 6"},{"$f":"CONCATENATE($A$4,\" + \",$C13)","v":"c + 9"},{"$f":"CONCATENATE($A4,\" = \",$S$4+$C$13)","v":"c = 6"},{"$f":"CONCATENATE($A$4,\" + \",$C13)","v":"c + 9"},{"$f":"CONCATENATE($A4,\" = \",$S$4+$C$13)","v":"c = 6"},{"$f":"CONCATENATE($A$4,\" + \",$C13)","v":"c + 9"},{"$f":"CONCATENATE($A4,\" = \",$S$4+$C$13)","v":"c = 6"},{"$f":"CONCATENATE($A$4,\" + \",$C13)","v":"c + 9"},{"$f":"CONCATENATE($A4,\" = \",$S$4+$C$13)","v":"c = 6"},{"$f":"CONCATENATE($A$4,\" + \",$C13)","v":"c + 9"},{"$f":"CONCATENATE($A4,\" = \",$S$4+$C$13)","v":"c = 6"},{"$f":"CONCATENATE($A$4,\" + \",$C13)","v":"c + 9"},{"$f":"CONCATENATE($A4,\" = \",$S$4+$C$13)","v":"c = 6"},{"$f":"CONCATENATE($A$4,\" + \",$C13)","v":"c + 9"},{"$f":"CONCATENATE($A4,\" = \",$S$4+$C$13)","v":"c = 6"},{"$f":"CONCATENATE($A$4,\" + \",$C13)","v":"c + 9"},{"$f":"CONCATENATE($A4,\" = \",$S$4+$C$13)","v":"c = 6"},{"$f":"CONCATENATE($A$4,\" + \",$C13)","v":"c + 9"},{"$f":"CONCATENATE($A4,\" = \",$S$4+$C$13)","v":"c = 6"},{"$f":"CONCATENATE($A$4,\" + \",$C13)","v":"c + 9"},{"$f":"CONCATENATE($A4,\" = \",$S$4+$C$13)","v":"c = 6"},{"$f":"CONCATENATE($A$4,\" + \",$C13)","v":"c + 9"},{"$f":"CONCATENATE($A4,\" = \",$S$4+$C$13)","v":"c = 6"},{"$f":"CONCATENATE($A$4,\" + \",$C13)","v":"c + 9"},{"$f":"CONCATENATE($A4,\" = \",$S$4+$C$13)","v":"c = 6"},{"$f":"CONCATENATE($A$4,\" + \",$C13)","v":"c + 9"},{"$f":"CONCATENATE($A4,\" = \",$S$4+$C$13)","v":"c = 6"},{"$f":"CONCATENATE($A$4,\" + \",$C13)","v":"c + 9"},{"$f":"CONCATENATE($A4,\" = \",$S$4+$C$13)","v":"c = 6"},{"$f":"CONCATENATE($A$4,\" + \",$C13)","v":"c + 9"},{"$f":"CONCATENATE($A4,\" = \",$S$4+$C$13)","v":"c = 6"},{"$f":"OFFSET(D13,0,VALUE(B13))","v":"c + 9"},{"$f":"OFFSET(E13,0,VALUE(B13))","v":6}]
[2,null,{"$f":"INT(5*RAND()+5)","v":6},{"$f":"CONCATENATE($A$5,\" + \",C14)","v":"h + 6"},{"$f":"S$5+C14","v":12},null,null,null,null,null,null,null,null,null,null,null,null,null,null,null,null,null,null,null,null,null,null,null,null,null,null,null,null,null,null,null,null,null,null,null,null,null,null,null,null,null,null,null,null,null,null,null,null,{"$f":"OFFSET(D14,0,VALUE(B14))","v":"h + 6"},{"$f":"OFFSET(E14,0,VALUE(B14))","v":12}]
[3,null,5,{"$f":"CONCATENATE($A$6,\" + \",C15)","v":"j + 5"},{"$f":"S$6+C15","v":-4},null,null,null,null,null,null,null,null,null,null,null,null,null,null,null,null,null,null,null,null,null,null,null,null,null,null,null,null,null,null,null,null,null,null,null,null,null,null,null,null,null,null,null,null,null,null,null,null,"j + 5",-4]
[4,null,9,{"$f":"CONCATENATE($A$7,\" + \",C16)","v":"q + 9"},{"$f":"S$7+C16","v":13},null,null,null,null,null,null,null,null,null,null,null,null,null,null,null,null,null,null,null,null,null,null,null,null,null,null,null,null,null,null,null,null,null,null,null,null,null,null,null,null,null,null,null,null,null,null,null,null,"q + 9",13]
[5,null,5,{"$f":"CONCATENATE($A$8,\" + \",C17)","v":"u + 5"},{"$f":"S$8+C17","v":13},null,null,null,null,null,null,null,null,null,null,null,null,null,null,null,null,null,null,null,null,null,null,null,null,null,null,null,null,null,null,null,null,null,null,null,null,null,null,null,null,null,null,null,null,null,null,null,null,"u + 5",13]
[6,null,{"$f":"INT(5*RAND()+8)","v":12},{"$f":"CONCATENATE($A$6,\" + \",C18)","v":"j + 12"},{"$f":"S$6+C18","v":3},null,null,null,null,null,null,null,null,null,null,null,null,null,null,null,null,null,null,null,null,null,null,null,null,null,null,null,null,null,null,null,null,null,null,null,null,null,null,null,null,null,null,null,null,null,null,null,null,"j + 12",3]
[7,null,{"$f":"INT(5*RAND()+8)","v":12},{"$f":"CONCATENATE($A$4,\" + \",C19)","v":"c + 12"},{"$f":"S$4+C19","v":9},null,null,null,null,null,null,null,null,null,null,null,null,null,null,null,null,null,null,null,null,null,null,null,null,null,null,null,null,null,null,null,null,null,null,null,null,null,null,null,null,null,null,null,null,null,null,null,null,"c + 12",9]
[8,null,{"$f":"INT(5*RAND()+8)","v":9},{"$f":"CONCATENATE($A$8,\" + \",C20)","v":"u + 9"},{"$f":"S$8+C20","v":17},null,null,null,null,null,null,null,null,null,null,null,null,null,null,null,null,null,null,null,null,null,null,null,null,null,null,null,null,null,null,null,null,null,null,null,null,null,null,null,null,null,null,null,null,null,null,null,null,"u + 9",17]
[9,null,{"$f":"INT(5*RAND()+8)","v":10},{"$f":"CONCATENATE($A$6,\" + \",C21)","v":"j + 10"},{"$f":"S$6+C21","v":1},null,null,null,null,null,null,null,null,null,null,null,null,null,null,null,null,null,null,null,null,null,null,null,null,null,null,null,null,null,null,null,null,null,null,null,null,null,null,null,null,null,null,null,null,null,null,null,null,"j + 10",1]
[10,null,{"$f":"INT(5*RAND()+8)","v":9},{"$f":"CONCATENATE($A$5,\" + \",C22)","v":"h + 9"},{"$f":"S$5+C22","v":15},null,null,null,null,null,null,null,null,null,null,null,null,null,null,null,null,null,null,null,null,null,null,null,null,null,null,null,null,null,null,null,null,null,null,null,null,null,null,null,null,null,null,null,null,null,null,null,null,"h + 9",15]
[11,null,{"$f":"INT(4*RAND()+1)","v":2},{"$f":"CONCATENATE($A$7,\" - \",C23)","v":"q - 2"},{"$f":"S$7-C23","v":2},null,null,null,null,null,null,null,null,null,null,null,null,null,null,null,null,null,null,null,null,null,null,null,null,null,null,null,null,null,null,null,null,null,null,null,null,null,null,null,null,null,null,null,null,null,null,null,null,"q - 2",2]
[12,null,{"$f":"INT(4*RAND()+3)","v":6},{"$f":"CONCATENATE($A$8,\" - \",C24)","v":"u - 6"},{"$f":"S$8-C24","v":2},null,null,null,null,null,null,null,null,null,null,null,null,null,null,null,null,null,null,null,null,null,null,null,null,null,null,null,null,null,null,null,null,null,null,null,null,null,null,null,null,null,null,null,null,null,null,null,null,"u - 6",2]
[13,null,6,{"$f":"CONCATENATE($A$4,\" + \",$A$6)","v":"c + j"},{"$f":"S$4+S$6","v":-12},null,null,null,null,null,null,null,null,null,null,null,null,null,null,null,null,null,null,null,null,null,null,null,null,null,null,null,null,null,null,null,null,null,null,null,null,null,null,null,null,null,null,null,null,null,null,null,null,"c + j",-12]
[14,null,6,{"$f":"CONCATENATE($A$5,\" + \",$A$8)","v":"h + u"},{"$f":"S$5+S$8","v":14},null,null,null,null,null,null,null,null,null,null,null,null,null,null,null,null,null,null,null,null,null,null,null,null,null,null,null,null,null,null,null,null,null,null,null,null,null,null,null,null,null,null,null,null,null,null,null,null,"h + u",14]
[15,null,5,{"$f":"CONCATENATE($A$6,\" + \",$A$4)","v":"j + c"},{"$f":"S$6+S$4","v":-12},null,null,null,null,null,null,null,null,null,null,null,null,null,null,null,null,null,null,null,null,null,null,null,null,null,null,null,null,null,null,null,null,null,null,null,null,null,null,null,null,null,null,null,null,null,null,null,null,"j + c",-12]
[16,null,6,{"$f":"CONCATENATE($A$7,\" + \",$A$6)","v":"q + j"},{"$f":"S$7+S$6","v":-5},null,null,null,null,null,null,null,null,null,null,null,null,null,null,null,null,null,null,null,null,null,null,null,null,null,null,null,null,null,null,null,null,null,null,null,null,null,null,null,null,null,null,null,null,null,null,null,null,"q + j",-5]
[17,null,5,{"$f":"CONCATENATE($A$8,\" - \",$A$4)","v":"u - c"},{"$f":"S$8-S$4","v":11},null,null,null,null,null,null,null,null,null,null,null,null,null,null,null,null,null,null,null,null,null,null,null,null,null,null,null,null,null,null,null,null,null,null,null,null,null,null,null,null,null,null,null,null,null,null,null,null,"u - c",11]
[18,null,7,{"$f":"CONCATENATE($A$7,\" + \",$A$8)","v":"q + u"},{"$f":"S$7+S$8","v":12},null,null,null,null,null,null,null,null,null,null,null,null,null,null,null,null,null,null,null,null,null,null,null,null,null,null,null,null,null,null,null,null,null,null,null,null,null,null,null,null,null,null,null,null,null,null,null,null,"q + u",12]
[19,null,9,{"$f":"CONCATENATE($A$7,\" - \",$A$4)","v":"q - c"},{"$f":"S$7-S$4","v":7},null,null,null,null,null,null,null,null,null,null,null,null,null,null,null,null,null,null,null,null,null,null,null,null,null,null,null,null,null,null,null,null,null,null,null,null,null,null,null,null,null,null,null,null,null,null,null,null,"q - c",7]
[20,null,7,{"$f":"CONCATENATE($A$8,\" - \",$A$5)","v":"u - h"},{"$f":"S$8-S$5","v":2},null,null,null,null,null,null,null,null,null,null,null,null,null,null,null,null,null,null,null,null,null,null,null,null,null,null,null,null,null,null,null,null,null,null,null,null,null,null,null,null,null,null,null,null,null,null,null,null,"u - h",2]
[21,null,5,{"$f":"CONCATENATE($A$4,\" + \",$A$5,\" + \",$A$6)","v":"c + h + j"},{"$f":"S$4+S$5+S$6","v":-6},null,null,null,null,null,null,null,null,null,null,null,null,null,null,null,null,null,null,null,null,null,null,null,null,null,null,null,null,null,null,null,null,null,null,null,null,null,null,null,null,null,null,null,null,null,null,null,null,"c + h + j",-6]
[22,null,9,{"$f":"CONCATENATE($A$4,\" + \",$A$8,\" + \",$A$6)","v":"c + u + j"},{"$f":"S$4+S$8+S$6","v":-4},null,null,null,null,null,null,null,null,null,null,null,null,null,null,null,null,null,null,null,null,null,null,null,null,null,null,null,null,null,null,null,null,null,null,null,null,null,null,null,null,null,null,null,null,null,null,null,null,"c + u + j",-4]
[23,null,5,{"$f":"CONCATENATE($A$7,\" + \",$A$4,\" + \",$A$6)","v":"q + c + j"},{"$f":"S$7+S$4+S$6","v":-8},null,null,null,null,null,null,null,null,null,null,null,null,null,null,null,null,null,null,null,null,null,null,null,null,null,null,null,null,null,null,null,null,null,null,null,null,null,null,null,null,null,null,null,null,null,null,null,null,"q + c + j",-8]
[24,null,6,{"$f":"CONCATENATE($A$4,\" + \",$A$7,\" - \",$A$6)","v":"c + q - j"},{"$f":"S$4+S$7-S$6","v":10},null,null,null,null,null,null,null,null,null,null,null,null,null,null,null,null,null,null,null,null,null,null,null,null,null,null,null,null,null,null,null,null,null,null,null,null,null,null,null,null,null,null,null,null,null,null,null,null,"c + q - j",10]
[25,null,9,{"$f":"CONCATENATE($A$8,\" - \",$A$4,\" + \",$A$6)","v":"u - c + j"},{"$f":"S$8-S$4+S$6","v":2},null,null,null,null,null,null,null,null,null,null,null,null,null,null,null,null,null,null,null,null,null,null,null,null,null,null,null,null,null,null,null,null,null,null,null,null,null,null,null,null,null,null,null,null,null,null,null,null,"u - c + j",2]
[26,null,8,{"$f":"CONCATENATE(\"3\",$A$4)","v":"3c"},{"$f":"3*S$4","v":-9},null,null,null,null,null,null,null,null,null,null,null,null,null,null,null,null,null,null,null,null,null,null,null,null,null,null,null,null,null,null,null,null,null,null,null,null,null,null,null,null,null,null,null,null,null,null,null,null,"3c",-9]
[27,null,7,{"$f":"CONCATENATE(\"5\",$A$4)","v":"5c"},{"$f":"5*S$4","v":-15},null,null,null,null,null,null,null,null,null,null,null,null,null,null,null,null,null,null,null,null,null,null,null,null,null,null,null,null,null,null,null,null,null,null,null,null,null,null,null,null,null,null,null,null,null,null,null,null,"5c",-15]
[28,null,7,{"$f":"CONCATENATE(\"2\",$A$8)","v":"2u"},{"$f":"3*S$4","v":-9},null,null,null,null,null,null,null,null,null,null,null,null,null,null,null,null,null,null,null,null,null,null,null,null,null,null,null,null,null,null,null,null,null,null,null,null,null,null,null,null,null,null,null,null,null,null,null,null,"2u",-9]
[29,null,{"$f":"INT(5*RAND()+3)","v":4},{"$f":"CONCATENATE(C41,$A$6)","v":"4j"},{"$f":"C41*S$6","v":-36},null,null,null,null,null,null,null,null,null,null,null,null,null,null,null,null,null,null,null,null,null,null,null,null,null,null,null,null,null,null,null,null,null,null,null,null,null,null,null,null,null,null,null,null,null,null,null,null,"4j",-36]
[30,null,{"$f":"INT(5*RAND()+3)","v":3},{"$f":"CONCATENATE(C42,$A$5)","v":"3h"},{"$f":"C42*S$5","v":18},null,null,null,null,null,null,null,null,null,null,null,null,null,null,null,null,null,null,null,null,null,null,null,null,null,null,null,null,null,null,null,null,null,null,null,null,null,null,null,null,null,null,null,null,null,null,null,null,"3h",18]
[31,null,7,{"$f":"CONCATENATE(C43,$A$7)","v":"7q"},{"$f":"C43*S$7","v":28},null,null,null,null,null,null,null,null,null,null,null,null,null,null,null,null,null,null,null,null,null,null,null,null,null,null,null,null,null,null,null,null,null,null,null,null,null,null,null,null,null,null,null,null,null,null,null,null,"7q",28]
[32,null,4,{"$f":"CONCATENATE(C44,$A$4)","v":"4c"},{"$f":"C44*S$4","v":-12},null,null,null,null,null,null,null,null,null,null,null,null,null,null,null,null,null,null,null,null,null,null,null,null,null,null,null,null,null,null,null,null,null,null,null,null,null,null,null,null,null,null,null,null,null,null,null,null,"4c",-12]
[33,null,3,{"$f":"CONCATENATE(C45,$A$6)","v":"3j"},{"$f":"C45*S$6","v":-27},null,null,null,null,null,null,null,null,null,null,null,null,null,null,null,null,null,null,null,null,null,null,null,null,null,null,null,null,null,null,null,null,null,null,null,null,null,null,null,null,null,null,null,null,null,null,null,null,"3j",-27]
[34,null,7,{"$f":"CONCATENATE(C46,$A$8)","v":"7u"},{"$f":"C46*S$8","v":56},null,null,null,null,null,null,null,null,null,null,null,null,null,null,null,null,null,null,null,null,null,null,null,null,null,null,null,null,null,null,null,null,null,null,null,null,null,null,null,null,null,null,null,null,null,null,null,null,"7u",56]
[35,null,7,{"$f":"CONCATENATE(C47,$A$6)","v":"7j"},{"$f":"C47*S$6","v":-63},null,null,null,null,null,null,null,null,null,null,null,null,null,null,null,null,null,null,null,null,null,null,null,null,null,null,null,null,null,null,null,null,null,null,null,null,null,null,null,null,null,null,null,null,null,null,null,null,"7j",-63]
[36,null,4,{"$f":"CONCATENATE($A$4,$A$6)","v":"cj"},{"$f":"S$6*S$6","v":81},null,null,null,null,null,null,null,null,null,null,null,null,null,null,null,null,null,null,null,null,null,null,null,null,null,null,null,null,null,null,null,null,null,null,null,null,null,null,null,null,null,null,null,null,null,null,null,null,"cj",81]
[37,null,5,{"$f":"CONCATENATE($A$6,$A$5)","v":"jh"},{"$f":"S$6*S$5","v":-54},null,null,null,null,null,null,null,null,null,null,null,null,null,null,null,null,null,null,null,null,null,null,null,null,null,null,null,null,null,null,null,null,null,null,null,null,null,null,null,null,null,null,null,null,null,null,null,null,"jh",-54]
[38,null,5,{"$f":"CONCATENATE($A$6,$A$8)","v":"ju"},{"$f":"S$6*S$8","v":-72},null,null,null,null,null,null,null,null,null,null,null,null,null,null,null,null,null,null,null,null,null,null,null,null,null,null,null,null,null,null,null,null,null,null,null,null,null,null,null,null,null,null,null,null,null,null,null,null,"ju",-72]
[39,null,3,{"$f":"CONCATENATE($A$7,$A$6)","v":"qj"},{"$f":"S$7*S$6","v":-36},null,null,null,null,null,null,null,null,null,null,null,null,null,null,null,null,null,null,null,null,null,null,null,null,null,null,null,null,null,null,null,null,null,null,null,null,null,null,null,null,null,null,null,null,null,null,null,null,"qj",-36]
[40,null,4,{"$f":"CONCATENATE($A$4,$A$6)","v":"cj"},{"$f":"S$6*S$6","v":81},null,null,null,null,null,null,null,null,null,null,null,null,null,null,null,null,null,null,null,null,null,null,null,null,null,null,null,null,null,null,null,null,null,null,null,null,null,null,null,null,null,null,null,null,null,null,null,null,"cj",81]
[41,null,5,{"$f":"CONCATENATE(C53,$A$4,\" + \",C53)","v":"5c + 5"},{"$f":"3*S$4+C53","v":-4},null,null,null,null,null,null,null,null,null,null,null,null,null,null,null,null,null,null,null,null,null,null,null,null,null,null,null,null,null,null,null,null,null,null,null,null,null,null,null,null,null,null,null,null,null,null,null,null,"5c + 5",-4]
[42,null,3,{"$f":"CONCATENATE(C54,$A$7,\" + \",C54)","v":"3q + 3"},{"$f":"3*S$7+C54","v":15},null,null,null,null,null,null,null,null,null,null,null,null,null,null,null,null,null,null,null,null,null,null,null,null,null,null,null,null,null,null,null,null,null,null,null,null,null,null,null,null,null,null,null,null,null,null,null,null,"3q + 3",15]
[43,null,4,{"$f":"CONCATENATE(C55,$A$8,\" + \",C55)","v":"4u + 4"},{"$f":"3*S$8+C55","v":28},null,null,null,null,null,null,null,null,null,null,null,null,null,null,null,null,null,null,null,null,null,null,null,null,null,null,null,null,null,null,null,null,null,null,null,null,null,null,null,null,null,null,null,null,null,null,null,null,"4u + 4",28]
[44,null,6,{"$f":"CONCATENATE(C56,$A$8,\" + \",C56)","v":"6u + 6"},{"$f":"3*S$8+C56","v":30},null,null,null,null,null,null,null,null,null,null,null,null,null,null,null,null,null,null,null,null,null,null,null,null,null,null,null,null,null,null,null,null,null,null,null,null,null,null,null,null,null,null,null,null,null,null,null,null,"6u + 6",30]
[45,null,5,{"$f":"CONCATENATE($A$4,$A$6,\" + \",C57)","v":"cj + 5"},{"$f":"S$4*S$6+C57","v":32},null,null,null,null,null,null,null,null,null,null,null,null,null,null,null,null,null,null,null,null,null,null,null,null,null,null,null,null,null,null,null,null,null,null,null,null,null,null,null,null,null,null,null,null,null,null,null,null,"cj + 5",32]
[46,null,3,{"$f":"CONCATENATE($A$5,$A$4,\" + \",C58)","v":"hc + 3"},{"$f":"S$5*S$4+C58","v":-15},null,null,null,null,null,null,null,null,null,null,null,null,null,null,null,null,null,null,null,null,null,null,null,null,null,null,null,null,null,null,null,null,null,null,null,null,null,null,null,null,null,null,null,null,null,null,null,null,"hc + 3",-15]
[47,null,6,{"$f":"CONCATENATE($A$8,$A$6,\" + \",C59)","v":"uj + 6"},{"$f":"S$8*S$6+C59","v":-66},null,null,null,null,null,null,null,null,null,null,null,null,null,null,null,null,null,null,null,null,null,null,null,null,null,null,null,null,null,null,null,null,null,null,null,null,null,null,null,null,null,null,null,null,null,null,null,null,"uj + 6",-66]
[48,null,8,{"$f":"CONCATENATE($A$6,$A$5,\" + \",C60)","v":"jh + 8"},{"$f":"S$6*S$5+C60","v":-46},null,null,null,null,null,null,null,null,null,null,null,null,null,null,null,null,null,null,null,null,null,null,null,null,null,null,null,null,null,null,null,null,null,null,null,null,null,null,null,null,null,null,null,null,null,null,null,null,"jh + 8",-46]
[49,null,8,{"$f":"CONCATENATE($A$7,$A$4,\" + \",C61)","v":"qc + 8"},{"$f":"S$7*S$4+C61","v":-4},null,null,null,null,null,null,null,null,null,null,null,null,null,null,null,null,null,null,null,null,null,null,null,null,null,null,null,null,null,null,null,null,null,null,null,null,null,null,null,null,null,null,null,null,null,null,null,null,"qc + 8",-4]
[50,null,8,{"$f":"CONCATENATE($A$8,$A$4,\" + \",C62)","v":"uc + 8"},{"$f":"S$8*S$4+C62","v":-16},null,null,null,null,null,null,null,null,null,null,null,null,null,null,null,null,null,null,null,null,null,null,null,null,null,null,null,null,null,null,null,null,null,null,null,null,null,null,null,null,null,null,null,null,null,null,null,null,"uc + 8",-16]
[51,null,5,{"$f":"CONCATENATE($A$4,\" + \",C63)","v":"c + 5"},{"$f":"S$4+C63","v":2},null,null,null,null,null,null,null,null,null,null,null,null,null,null,null,null,null,null,null,null,null,null,null,null,null,null,null,null,null,null,null,null,null,null,null,null,null,null,null,null,null,null,null,null,null,null,null,null,"c + 5",2]
[52,null,6,"c + 6",3,null,null,null,null,null,null,null,null,null,null,null,null,null,null,null,null,null,null,null,null,null,null,null,null,null,null,null,null,null,null,null,null,null,null,null,null,null,null,null,null,null,null,null,null,null,null,null,null,"c + 6",3]
[53,null,6,"c + 6",3,null,null,null,null,null,null,null,null,null,null,null,null,null,null,null,null,null,null,null,null,null,null,null,null,null,null,null,null,null,null,null,null,null,null,null,null,null,null,null,null,null,null,null,null,null,null,null,null,"c + 6",3]
[54,null,9,"c + 9",6,null,null,null,null,null,null,null,null,null,null,null,null,null,null,null,null,null,null,null,null,null,null,null,null,null,null,null,null,null,null,null,null,null,null,null,null,null,null,null,null,null,null,null,null,null,null,null,null,"c + 9",6]
[55,null,5,"c + 5",2,null,null,null,null,null,null,null,null,null,null,null,null,null,null,null,null,null,null,null,null,null,null,null,null,null,null,null,null,null,null,null,null,null,null,null,null,null,null,null,null,null,null,null,null,null,null,null,null,"c + 5",2]
[56,null,9,"c + 9",6,null,null,null,null,null,null,null,null,null,null,null,null,null,null,null,null,null,null,null,null,null,null,null,null,null,null,null,null,null,null,null,null,null,null,null,null,null,null,null,null,null,null,null,null,null,null,null,null,"c + 9",6]
[57,null,8,"c + 8",5,null,null,null,null,null,null,null,null,null,null,null,null,null,null,null,null,null,null,null,null,null,null,null,null,null,null,null,null,null,null,null,null,null,null,null,null,null,null,null,null,null,null,null,null,null,null,null,null,"c + 8",5]
[58,null,8,"c + 8",5,null,null,null,null,null,null,null,null,null,null,null,null,null,null,null,null,null,null,null,null,null,null,null,null,null,null,null,null,null,null,null,null,null,null,null,null,null,null,null,null,null,null,null,null,null,null,null,null,"c + 8",5]
[59,null,7,"c + 7",4,null,null,null,null,null,null,null,null,null,null,null,null,null,null,null,null,null,null,null,null,null,null,null,null,null,null,null,null,null,null,null,null,null,null,null,null,null,null,null,null,null,null,null,null,null,null,null,null,"c + 7",4]
[60,null,9,"c + 9",6,null,null,null,null,null,null,null,null,null,null,null,null,null,null,null,null,null,null,null,null,null,null,null,null,null,null,null,null,null,null,null,null,null,null,null,null,null,null,null,null,null,null,null,null,null,null,null,null,"c + 9",6]
[61,null,6,"c + 6",3,null,null,null,null,null,null,null,null,null,null,null,null,null,null,null,null,null,null,null,null,null,null,null,null,null,null,null,null,null,null,null,null,null,null,null,null,null,null,null,null,null,null,null,null,null,null,null,null,"c + 6",3]
[62,null,5,"c + 5",2,null,null,null,null,null,null,null,null,null,null,null,null,null,null,null,null,null,null,null,null,null,null,null,null,null,null,null,null,null,null,null,null,null,null,null,null,null,null,null,null,null,null,null,null,null,null,null,null,"c + 5",2]
[63,null,7,"c + 7",4,null,null,null,null,null,null,null,null,null,null,null,null,null,null,null,null,null,null,null,null,null,null,null,null,null,null,null,null,null,null,null,null,null,null,null,null,null,null,null,null,null,null,null,null,null,null,null,null,"c + 7",4]
[64,null,5,"c + 5",2,null,null,null,null,null,null,null,null,null,null,null,null,null,null,null,null,null,null,null,null,null,null,null,null,null,null,null,null,null,null,null,null,null,null,null,null,null,null,null,null,null,null,null,null,null,null,null,null,"c + 5",2]
[65,null,8,"c + 8",5,null,null,null,null,null,null,null,null,null,null,null,null,null,null,null,null,null,null,null,null,null,null,null,null,null,null,null,null,null,null,null,null,null,null,null,null,null,null,null,null,null,null,null,null,null,null,null,null,"c + 8",5]
[66,null,{"$f":"INT(5*RAND()+5)","v":6},{"$f":"CONCATENATE($A$4,\" + \",C78)","v":"c + 6"},{"$f":"S$4+C78","v":3},null,null,null,null,null,null,null,null,null,null,null,null,null,null,null,null,null,null,null,null,null,null,null,null,null,null,null,null,null,null,null,null,null,null,null,null,null,null,null,null,null,null,null,null,null,null,null,null,{"$f":"OFFSET(D78,0,VALUE(B78))","v":"c + 6"},{"$f":"OFFSET(E78,0,VALUE(B78))","v":3}]
[67,null,6,"c + 6",3,null,null,null,null,null,null,null,null,null,null,null,null,null,null,null,null,null,null,null,null,null,null,null,null,null,null,null,null,null,null,null,null,null,null,null,null,null,null,null,null,null,null,null,null,null,null,null,null,"c + 6",3]
[68,null,5,"c + 5",2,null,null,null,null,null,null,null,null,null,null,null,null,null,null,null,null,null,null,null,null,null,null,null,null,null,null,null,null,null,null,null,null,null,null,null,null,null,null,null,null,null,null,null,null,null,null,null,null,"c + 5",2]
[69,null,9,"c + 9",6,null,null,null,null,null,null,null,null,null,null,null,null,null,null,null,null,null,null,null,null,null,null,null,null,null,null,null,null,null,null,null,null,null,null,null,null,null,null,null,null,null,null,null,null,null,null,null,null,"c + 9",6]
[70,null,6,"c + 6",3,null,null,null,null,null,null,null,null,null,null,null,null,null,null,null,null,null,null,null,null,null,null,null,null,null,null,null,null,null,null,null,null,null,null,null,null,null,null,null,null,null,null,null,null,null,null,null,null,"c + 6",3]
[71,null,6,"c + 6",3,null,null,null,null,null,null,null,null,null,null,null,null,null,null,null,null,null,null,null,null,null,null,null,null,null,null,null,null,null,null,null,null,null,null,null,null,null,null,null,null,null,null,null,null,null,null,null,null,"c + 6",3]
[72,null,5,"c + 5",2,null,null,null,null,null,null,null,null,null,null,null,null,null,null,null,null,null,null,null,null,null,null,null,null,null,null,null,null,null,null,null,null,null,null,null,null,null,null,null,null,null,null,null,null,null,null,null,null,"c + 5",2]
[73,null,9,"c + 9",6,null,null,null,null,null,null,null,null,null,null,null,null,null,null,null,null,null,null,null,null,null,null,null,null,null,null,null,null,null,null,null,null,null,null,null,null,null,null,null,null,null,null,null,null,null,null,null,null,"c + 9",6]
[74,null,8,"c + 8",5,null,null,null,null,null,null,null,null,null,null,null,null,null,null,null,null,null,null,null,null,null,null,null,null,null,null,null,null,null,null,null,null,null,null,null,null,null,null,null,null,null,null,null,null,null,null,null,null,"c + 8",5]
[75,null,7,"c + 7",4,null,null,null,null,null,null,null,null,null,null,null,null,null,null,null,null,null,null,null,null,null,null,null,null,null,null,null,null,null,null,null,null,null,null,null,null,null,null,null,null,null,null,null,null,null,null,null,null,"c + 7",4]
[76,null,8,"c + 8",5,null,null,null,null,null,null,null,null,null,null,null,null,null,null,null,null,null,null,null,null,null,null,null,null,null,null,null,null,null,null,null,null,null,null,null,null,null,null,null,null,null,null,null,null,null,null,null,null,"c + 8",5]
[77,null,5,"c + 5",2,null,null,null,null,null,null,null,null,null,null,null,null,null,null,null,null,null,null,null,null,null,null,null,null,null,null,null,null,null,null,null,null,null,null,null,null,null,null,null,null,null,null,null,null,null,null,null,null,"c + 5",2]
[78,null,7,"c + 7",4,null,null,null,null,null,null,null,null,null,null,null,null,null,null,null,null,null,null,null,null,null,null,null,null,null,null,null,null,null,null,null,null,null,null,null,null,null,null,null,null,null,null,null,null,null,null,null,null,"c + 7",4]
[79,null,8,"c + 8",5,null,null,null,null,null,null,null,null,null,null,null,null,null,null,null,null,null,null,null,null,null,null,null,null,null,null,null,null,null,null,null,null,null,null,null,null,null,null,null,null,null,null,null,null,null,null,null,null,"c + 8",5]
[80,null,8,"c + 8",5,null,null,null,null,null,null,null,null,null,null,null,null,null,null,null,null,null,null,null,null,null,null,null,null,null,null,null,null,null,null,null,null,null,null,null,null,null,null,null,null,null,null,null,null,null,null,null,null,"c + 8",5]
[81,null,5,"c + 5",2,null,null,null,null,null,null,null,null,null,null,null,null,null,null,null,null,null,null,null,null,null,null,null,null,null,null,null,null,null,null,null,null,null,null,null,null,null,null,null,null,null,null,null,null,null,null,null,null,"c + 5",2]
[82,null,5,"c + 5",2,null,null,null,null,null,null,null,null,null,null,null,null,null,null,null,null,null,null,null,null,null,null,null,null,null,null,null,null,null,null,null,null,null,null,null,null,null,null,null,null,null,null,null,null,null,null,null,null,"c + 5",2]
[83,null,7,"c + 7",4,null,null,null,null,null,null,null,null,null,null,null,null,null,null,null,null,null,null,null,null,null,null,null,null,null,null,null,null,null,null,null,null,null,null,null,null,null,null,null,null,null,null,null,null,null,null,null,null,"c + 7",4]
[84,null,9,"c + 9",6,null,null,null,null,null,null,null,null,null,null,null,null,null,null,null,null,null,null,null,null,null,null,null,null,null,null,null,null,null,null,null,null,null,null,null,null,null,null,null,null,null,null,null,null,null,null,null,null,"c + 9",6]
[85,null,8,"c + 8",5,null,null,null,null,null,null,null,null,null,null,null,null,null,null,null,null,null,null,null,null,null,null,null,null,null,null,null,null,null,null,null,null,null,null,null,null,null,null,null,null,null,null,null,null,null,null,null,null,"c + 8",5]
[86,null,7,"c + 7",4,null,null,null,null,null,null,null,null,null,null,null,null,null,null,null,null,null,null,null,null,null,null,null,null,null,null,null,null,null,null,null,null,null,null,null,null,null,null,null,null,null,null,null,null,null,null,null,null,"c + 7",4]
[87,null,6,"c + 6",3,null,null,null,null,null,null,null,null,null,null,null,null,null,null,null,null,null,null,null,null,null,null,null,null,null,null,null,null,null,null,null,null,null,null,null,null,null,null,null,null,null,null,null,null,null,null,null,null,"c + 6",3]
[88,null,7,"c + 7",4,null,null,null,null,null,null,null,null,null,null,null,null,null,null,null,null,null,null,null,null,null,null,null,null,null,null,null,null,null,null,null,null,null,null,null,null,null,null,null,null,null,null,null,null,null,null,null,null,"c + 7",4]
[89,null,8,"c + 8",5,null,null,null,null,null,null,null,null,null,null,null,null,null,null,null,null,null,null,null,null,null,null,null,null,null,null,null,null,null,null,null,null,null,null,null,null,null,null,null,null,null,null,null,null,null,null,null,null,"c + 8",5]
[90,null,6,"c + 6",3,null,null,null,null,null,null,null,null,null,null,null,null,null,null,null,null,null,null,null,null,null,null,null,null,null,null,null,null,null,null,null,null,null,null,null,null,null,null,null,null,null,null,null,null,null,null,null,null,"c + 6",3]
[91,null,8,"c + 8",5,null,null,null,null,null,null,null,null,null,null,null,null,null,null,null,null,null,null,null,null,null,null,null,null,null,null,null,null,null,null,null,null,null,null,null,null,null,null,null,null,null,null,null,null,null,null,null,null,"c + 8",5]
[92,null,8,"c + 8",5,null,null,null,null,null,null,null,null,null,null,null,null,null,null,null,null,null,null,null,null,null,null,null,null,null,null,null,null,null,null,null,null,null,null,null,null,null,null,null,null,null,null,null,null,null,null,null,null,"c + 8",5]
[93,null,8,"c + 8",5,null,null,null,null,null,null,null,null,null,null,null,null,null,null,null,null,null,null,null,null,null,null,null,null,null,null,null,null,null,null,null,null,null,null,null,null,null,null,null,null,null,null,null,null,null,null,null,null,"c + 8",5]
[94,null,7,"c + 7",4,null,null,null,null,null,null,null,null,null,null,null,null,null,null,null,null,null,null,null,null,null,null,null,null,null,null,null,null,null,null,null,null,null,null,null,null,null,null,null,null,null,null,null,null,null,null,null,null,"c + 7",4]
[95,null,7,"c + 7",4,null,null,null,null,null,null,null,null,null,null,null,null,null,null,null,null,null,null,null,null,null,null,null,null,null,null,null,null,null,null,null,null,null,null,null,null,null,null,null,null,null,null,null,null,null,null,null,null,"c + 7",4]
[96,null,6,"c + 6",3,null,null,null,null,null,null,null,null,null,null,null,null,null,null,null,null,null,null,null,null,null,null,null,null,null,null,null,null,null,null,null,null,null,null,null,null,null,null,null,null,null,null,null,null,null,null,null,null,"c + 6",3]
[97,null,7,"c + 7",4,null,null,null,null,null,null,null,null,null,null,null,null,null,null,null,null,null,null,null,null,null,null,null,null,null,null,null,null,null,null,null,null,null,null,null,null,null,null,null,null,null,null,null,null,null,null,null,null,"c + 7",4]
[98,null,5,"c + 5",2,null,null,null,null,null,null,null,null,null,null,null,null,null,null,null,null,null,null,null,null,null,null,null,null,null,null,null,null,null,null,null,null,null,null,null,null,null,null,null,null,null,null,null,null,null,null,null,null,"c + 5",2]
[99,null,6,"c + 6",3,null,null,null,null,null,null,null,null,null,null,null,null,null,null,null,null,null,null,null,null,null,null,null,null,null,null,null,null,null,null,null,null,null,null,null,null,null,null,null,null,null,null,null,null,null,null,null,null,"c + 6",3]
[100,null,8,"c + 8",5,null,null,null,null,null,null,null,null,null,null,null,null,null,null,null,null,null,null,null,null,null,null,null,null,null,null,null,null,null,null,null,null,null,null,null,null,null,null,null,null,null,null,null,null,null,null,null,null,"c + 8",5]